{"text_format":"1","workbook":"xlsx","n_sheets":1,"sheets":["Woche 1"],"not_rendered":{"charts":0,"images":1,"macros":1,"external_links":0,"defined_names":0,"comments":0,"pivot_tables":0},"unopened":[],"bounds":{"document_bytes":16777216,"sheet_cells":100000,"rows_first":2000,"rows_last":500,"rows_between":2000,"halvings":0,"cell_chars":16384,"cell_head_chars":4096},"cells_cut":0,"cells_raw":0,"read":"whole","date_system":"1900"}

{"sheet":"Woche 1","index":0,"n_rows":74,"n_cols":24,"rows_kept":74,"cut":false,"hidden":false,"merged":[[74,2,76,25],[3,0,76,1],[5,21,13,21],[5,24,13,25],[14,21,73,25],[3,2,4,25],[64,2,64,20],[54,2,54,20],[44,2,44,20],[34,2,34,20],[24,2,24,20],[14,2,14,20]]}
[]
[]
[]
[]
[]
[null,null,"Montag","07:00:00","08:00:00","09:00:00","10:00:00","11:00:00","12:00:00","13:00:00","14:00:00","15:00:00","16:00:00","17:00:00","18:00:00","19:00:00","20:00:00","21:00:00","22:00:00","Abwesend?","Summe",null,"Mitarbeiter","Stunden"]
[null,null,{"$f":"$W$7","v":"Hanna"},"Service","Service","Service","Service","Service","Service",null,null,null,null,null,null,null,null,null,null,null,{"$f":"COUNTIF(D7:S7,\"*\")","v":6},null,"Hanna",{"$f":"U7+U17+U27+U37+U47+U57+U67","v":14}]
[null,null,{"$f":"$W$8","v":"Simone"},null,null,null,"Küche","Küche","Küche","Küche","Küche","Küche","Küche",null,null,null,null,null,null,null,{"$f":"COUNTIF(D8:S8,\"*\")","v":7},null,"Simone",7]
[null,null,{"$f":"$W$9","v":"Johannes"},null,null,null,null,null,null,null,null,null,null,null,null,null,null,null,null,null,0,null,"Johannes",0]
[null,null,{"$f":"$W$10","v":"Markus"},null,null,null,null,null,null,null,null,null,"Bar","Bar","Bar","Bar","Bar","Bar","Bar",null,7,null,"Markus",7]
[null,null,{"$f":"$W$11","v":"Lisa"},null,null,null,null,null,null,null,null,null,null,null,null,null,null,null,null,null,0,null,"Lisa",0]
[null,null,{"$f":"$W$12","v":"Daniela"},null,null,null,null,null,null,null,null,null,null,null,null,null,null,null,null,"Wunschfrei",0,null,"Daniela",0]
[null,null,{"$f":"$W$13","v":"Stefan"},null,null,null,null,null,null,null,null,null,null,null,null,null,null,"Reinigen","Reinigen",null,2,null,"Stefan",2]
[null,null,{"$f":"$W$14","v":"Michael"},null,null,null,null,null,null,null,null,null,null,null,null,null,null,null,null,"Krank",0,null,"Michael",0]
[]
[null,null,"Dienstag","07:00:00","08:00:00","09:00:00","10:00:00","11:00:00","12:00:00","13:00:00","14:00:00","15:00:00","16:00:00","17:00:00","18:00:00","19:00:00","20:00:00","21:00:00","22:00:00","Abwesend?","Summe"]
[null,null,{"$f":"$W$7","v":"Hanna"},null,null,null,null,null,null,null,"Service","Service","Service","Service","Service","Service","Service","Service",null,null,{"$f":"COUNTIF(D17:S17,\"*\")","v":8}]
[null,null,{"$f":"$W$8","v":"Simone"},null,null,null,null,null,null,null,null,null,null,null,null,null,null,null,null,null,{"$f":"COUNTIF(D18:S18,\"*\")","v":0}]
[null,null,{"$f":"$W$9","v":"Johannes"},null,null,null,null,null,null,null,null,null,null,null,null,null,null,null,null,"Urlaub",0]
[null,null,{"$f":"$W$10","v":"Markus"},null,null,null,null,null,null,null,null,null,null,null,null,null,null,null,null,null,0]
[null,null,{"$f":"$W$11","v":"Lisa"},null,null,null,null,null,null,null,null,null,null,null,null,null,null,null,null,null,0]
[null,null,{"$f":"$W$12","v":"Daniela"},null,null,null,null,null,null,null,null,null,null,null,null,null,null,null,null,null,0]
[null,null,{"$f":"$W$13","v":"Stefan"},null,null,null,null,null,null,null,null,null,null,null,null,null,null,null,null,null,0]
[null,null,{"$f":"$W$14","v":"Michael"},null,null,null,null,null,null,null,null,null,null,null,null,null,null,null,null,null,0]
[]
[null,null,"Mittwoch","07:00:00","08:00:00","09:00:00","10:00:00","11:00:00","12:00:00","13:00:00","14:00:00","15:00:00","16:00:00","17:00:00","18:00:00","19:00:00","20:00:00","21:00:00","22:00:00","Abwesend?","Summe"]
[null,null,{"$f":"$W$7","v":"Hanna"},null,null,null,null,null,null,null,null,null,null,null,null,null,null,null,null,null,{"$f":"COUNTIF(D27:S27,\"*\")","v":0}]
[null,null,{"$f":"$W$8","v":"Simone"},null,null,null,null,null,null,null,null,null,null,null,null,null,null,null,null,null,{"$f":"COUNTIF(D28:S28,\"*\")","v":0}]
[null,null,{"$f":"$W$9","v":"Johannes"},null,null,null,null,null,null,null,null,null,null,null,null,null,null,null,null,"Urlaub",0]
[null,null,{"$f":"$W$10","v":"Markus"},null,null,null,null,null,null,null,null,null,null,null,null,null,null,null,null,null,0]
[null,null,{"$f":"$W$11","v":"Lisa"},null,null,null,null,null,null,null,null,null,null,null,null,null,null,null,null,null,0]
[null,null,{"$f":"$W$12","v":"Daniela"},null,null,null,null,null,null,null,null,null,null,null,null,null,null,null,null,null,0]
[null,null,{"$f":"$W$13","v":"Stefan"},null,null,null,null,null,null,null,null,null,null,null,null,null,null,null,null,null,0]
[null,null,{"$f":"$W$14","v":"Michael"},null,null,null,null,null,null,null,null,null,null,null,null,null,null,null,null,null,0]
[]
[null,null,"Donnerstag","07:00:00","08:00:00","09:00:00","10:00:00","11:00:00","12:00:00","13:00:00","14:00:00","15:00:00","16:00:00","17:00:00","18:00:00","19:00:00","20:00:00","21:00:00","22:00:00","Abwesend?","Summe"]
[null,null,{"$f":"$W$7","v":"Hanna"},null,null,null,null,null,null,null,null,null,null,null,null,null,null,null,null,null,{"$f":"COUNTIF(D37:S37,\"*\")","v":0}]
[null,null,{"$f":"$W$8","v":"Simone"},null,null,null,null,null,null,null,null,null,null,null,null,null,null,null,null,null,{"$f":"COUNTIF(D38:S38,\"*\")","v":0}]
[null,null,{"$f":"$W$9","v":"Johannes"},null,null,null,null,null,null,null,null,null,null,null,null,null,null,null,null,null,0]
[null,null,{"$f":"$W$10","v":"Markus"},null,null,null,null,null,null,null,null,null,null,null,null,null,null,null,null,null,0]
[null,null,{"$f":"$W$11","v":"Lisa"},null,null,null,null,null,null,null,null,null,null,null,null,null,null,null,null,null,0]
[null,null,{"$f":"$W$12","v":"Daniela"},null,null,null,null,null,null,null,null,null,null,null,null,null,null,null,null,null,0]
[null,null,{"$f":"$W$13","v":"Stefan"},null,null,null,null,null,null,null,null,null,null,null,null,null,null,null,null,null,0]
[null,null,{"$f":"$W$14","v":"Michael"},null,null,null,null,null,null,null,null,null,null,null,null,null,null,null,null,null,0]
[]
[null,null,"Freitag","07:00:00","08:00:00","09:00:00","10:00:00","11:00:00","12:00:00","13:00:00","14:00:00","15:00:00","16:00:00","17:00:00","18:00:00","19:00:00","20:00:00","21:00:00","22:00:00","Abwesend?","Summe"]
[null,null,{"$f":"$W$7","v":"Hanna"},null,null,null,null,null,null,null,null,null,null,null,null,null,null,null,null,null,{"$f":"COUNTIF(D47:S47,\"*\")","v":0}]
[null,null,{"$f":"$W$8","v":"Simone"},null,null,null,null,null,null,null,null,null,null,null,null,null,null,null,null,null,{"$f":"COUNTIF(D48:S48,\"*\")","v":0}]
[null,null,{"$f":"$W$9","v":"Johannes"},null,null,null,null,null,null,null,null,null,null,null,null,null,null,null,null,null,0]
[null,null,{"$f":"$W$10","v":"Markus"},null,null,null,null,null,null,null,null,null,null,null,null,null,null,null,null,null,0]
[null,null,{"$f":"$W$11","v":"Lisa"},null,null,null,null,null,null,null,null,null,null,null,null,null,null,null,null,null,0]
[null,null,{"$f":"$W$12","v":"Daniela"},null,null,null,null,null,null,null,null,null,null,null,null,null,null,null,null,null,0]
[null,null,{"$f":"$W$13","v":"Stefan"},null,null,null,null,null,null,null,null,null,null,null,null,null,null,null,null,null,0]
[null,null,{"$f":"$W$14","v":"Michael"},null,null,null,null,null,null,null,null,null,null,null,null,null,null,null,null,null,0]
[]
[null,null,"Samstag","07:00:00","08:00:00","09:00:00","10:00:00","11:00:00","12:00:00","13:00:00","14:00:00","15:00:00","16:00:00","17:00:00","18:00:00","19:00:00","20:00:00","21:00:00","22:00:00","Abwesend?","Summe"]
[null,null,{"$f":"$W$7","v":"Hanna"},null,null,null,null,null,null,null,null,null,null,null,null,null,null,null,null,null,{"$f":"COUNTIF(D57:S57,\"*\")","v":0}]
[null,null,{"$f":"$W$8","v":"Simone"},null,null,null,null,null,null,null,null,null,null,null,null,null,null,null,null,null,{"$f":"COUNTIF(D58:S58,\"*\")","v":0}]
[null,null,{"$f":"$W$9","v":"Johannes"},null,null,null,null,null,null,null,null,null,null,null,null,null,null,null,null,null,0]
[null,null,{"$f":"$W$10","v":"Markus"},null,null,null,null,null,null,null,null,null,null,null,null,null,null,null,null,null,0]
[null,null,{"$f":"$W$11","v":"Lisa"},null,null,null,null,null,null,null,null,null,null,null,null,null,null,null,null,null,0]
[null,null,{"$f":"$W$12","v":"Daniela"},null,null,null,null,null,null,null,null,null,null,null,null,null,null,null,null,null,0]
[null,null,{"$f":"$W$13","v":"Stefan"},null,null,null,null,null,null,null,null,null,null,null,null,null,null,null,null,null,0]
[null,null,{"$f":"$W$14","v":"Michael"},null,null,null,null,null,null,null,null,null,null,null,null,null,null,null,null,null,0]
[]
[null,null,"Sonntag","07:00:00","08:00:00","09:00:00","10:00:00","11:00:00","12:00:00","13:00:00","14:00:00","15:00:00","16:00:00","17:00:00","18:00:00","19:00:00","20:00:00","21:00:00","22:00:00","Abwesend?","Summe"]
[null,null,{"$f":"$W$7","v":"Hanna"},null,null,null,null,null,null,null,null,null,null,null,null,null,null,null,null,null,{"$f":"COUNTIF(D67:S67,\"*\")","v":0}]
[null,null,{"$f":"$W$8","v":"Simone"},null,null,null,null,null,null,null,null,null,null,null,null,null,null,null,null,null,{"$f":"COUNTIF(D68:S68,\"*\")","v":0}]
[null,null,{"$f":"$W$9","v":"Johannes"},null,null,null,null,null,null,null,null,null,null,null,null,null,null,null,null,null,0]
[null,null,{"$f":"$W$10","v":"Markus"},null,null,null,null,null,null,null,null,null,null,null,null,null,null,null,null,null,0]
[null,null,{"$f":"$W$11","v":"Lisa"},null,null,null,null,null,null,null,null,null,null,null,null,null,null,null,null,null,0]
[null,null,{"$f":"$W$12","v":"Daniela"},null,null,null,null,null,null,null,null,null,null,null,null,null,null,null,null,null,0]
[null,null,{"$f":"$W$13","v":"Stefan"},null,null,null,null,null,null,null,null,null,null,null,null,null,null,null,null,null,0]
[null,null,{"$f":"$W$14","v":"Michael"},null,null,null,null,null,null,null,null,null,null,null,null,null,null,null,null,null,0]